fUST/lending_fUST_20240409
["ID","MTS","AMOUNT","RATE_DAILY","PERIOD"]
[321949059,1712647849922,-1700.2,0.00036164,5]
[321949061,1712647849933,-500.0,0.00036164,5]
[321949063,1712647849943,-502.23,0.00036164,5]
[321949065,1712647849953,-500.0,0.00036164,5]
[321949067,1712647849964,-2026.45,0.00036164,5]
[321949069,1712647849975,-500.0,0.00036164,5]
[321949071,1712647849985,-500.0,0.00036164,5]
[321949073,1712647849997,-560.87,0.00036164,5]
[321949075,1712647850007,-500.0,0.00036164,5]
[321949077,1712647850018,-1263.05,0.00036164,5]
[321949079,1712647850028,-842.22,0.00036164,5]
[321949082,1712647850037,-500.0,0.00036164,5]
[321949083,1712647850047,-301.78874788,0.00036199,4]
[321949085,1712647850056,-153.0,0.00036356,2]
[321949087,1712647850066,-153.0,0.00036356,2]
[321949089,1712647850075,-153.0,0.00036356,2]
[321949091,1712647850085,-403.36778013,0.00036375,2]
[321949092,1712647850094,-216.67010204,0.00036436,4]
[321949093,1712647850102,-500.0,0.00036438,5]
[321949094,1712647850111,-500.0,0.00036438,5]
[321949095,1712647850120,-500.0,0.00036438,5]
[321949096,1712647850129,-500.0,0.00036438,5]
[321949097,1712647850138,-500.0,0.00036438,5]
[321949098,1712647850150,-501.33495662,0.00036438,5]
[321949099,1712647850160,-797.16,0.00036438,5]
[321949101,1712647850169,-507.76398949,0.00036438,5]
[321949103,1712647850178,-548.06806477,0.00036438,5]
[321949105,1712647850191,-500.82046413,0.00036438,5]
[321949107,1712647850201,-501.85479014,0.00036438,5]
[321949109,1712647850210,-500.0,0.00036438,5]
[321949111,1712647850220,-500.0,0.00036438,5]
[321949113,1712647850230,-500.0,0.00036438,5]
[321949115,1712647850240,-501.46231694,0.00036438,5]
[321949117,1712647850249,-500.0,0.00036438,5]
[321949119,1712647850258,-500.0,0.00036438,5]
[321949121,1712647850267,-502.46114327,0.00036438,5]
[321949123,1712647850277,-835.92,0.00036438,2]
[321949125,1712647850287,-500.0,0.00036438,5]
[321949127,1712647850297,-525.74,0.00036438,5]
[321949128,1712647850306,-684.42,0.00036438,5]
[321949130,1712647850316,-500.0,0.00036438,5]
[321949132,1712647850325,-500.0,0.00036438,5]
[321949134,1712647850335,-500.0,0.00036438,5]
[321949136,1712647850344,-500.0,0.00036438,5]
[321949139,1712647850356,-618.22,0.00036438,5]
[321949141,1712647850365,-547.7,0.00036438,5]
[321949143,1712647850375,-500.0,0.00036438,5]
[321949145,1712647850384,-1403.92,0.00036438,5]
[321949147,1712647850394,-500.0,0.00036438,5]
[321949148,1712647850403,-500.0,0.00036438,5]
[321949151,1712647850413,-500.0,0.00036438,5]
[321949152,1712647850423,-647.24,0.00036438,5]
[321949155,1712647850432,-500.0,0.00036438,5]
[321949156,1712647850442,-500.0,0.00036438,5]
[321949158,1712647850452,-500.0,0.00036438,5]
[321949160,1712647850461,-500.0,0.00036438,5]
[321949162,1712647850471,-500.0,0.00036438,5]
[321949164,1712647850481,-799.03,0.00036438,5]
[321949167,1712647850491,-500.0,0.00036438,5]
[321949169,1712647850500,-520.27,0.00036438,5]
[321949171,1712647850510,-459.72899616,0.00036438,5]
[321949173,1712647850520,-500.0,0.00036438,5]
[321949174,1712647850530,-235.11677349,0.00036438,5]
[321949176,1712647850539,-670.95,0.00036438,5]
[321949179,1712647850550,-1078.43,0.00036438,5]
[321949180,1712647850560,-500.0,0.00036438,5]
[321949182,1712647850570,-2328.95,0.00036438,5]
[321949185,1712647850580,-500.0,0.00036438,5]
[321949187,1712647850591,-948.4,0.00036438,5]
[321949188,1712647850601,-500.0,0.00036438,5]
[321949190,1712647850611,-785.42,0.00036438,5]
[321949193,1712647850621,-500.87427561,0.00036438,5]
[321949194,1712647850632,-500.0,0.00036438,5]
[321949197,1712647850644,-459.24702033,0.00036438,5]
[321949198,1712647850654,-500.0,0.00036438,5]
[321949201,1712647850664,-500.0,0.00036438,5]
[321949203,1712647850674,-849.98,0.00036438,5]
[321949204,1712647850686,-500.0,0.00036438,5]
[321949207,1712647850697,-1559.31,0.00036438,5]
[321949209,1712647850707,-500.0,0.00036438,5]
[321949211,1712647850723,-500.0,0.00036438,5]
[321949214,1712647850740,-501.97,0.00036438,5]
[321949216,1712647850756,-500.0,0.00036438,5]
[321949219,1712647850769,-500.0,0.00036438,5]
[321949221,1712647850783,-500.0,0.00036438,5]
[321949224,1712647850797,-500.0,0.00036438,5]
[321949226,1712647850812,-500.0,0.00036438,5]
[321949229,1712647850827,-3071.26,0.00036438,5]
[321949231,1712647850838,-5313.74,0.00036438,5]
[321949233,1712647850852,-528.39,0.00036438,5]
[321949236,1712647850866,-1291.8,0.00036438,5]
[321949238,1712647850879,-6191.61,0.00036438,5]
[321949241,1712647850894,-489.40550874,0.00036438,5]
[321949243,1712647850909,-1121.17,0.00036438,5]
[321949245,1712647850921,-2705.2,0.00036438,5]
[321949248,1712647850936,-500.0,0.00036438,5]
[321949250,1712647850951,-1220.29,0.00036438,5]
[321949253,1712647850965,-500.0,0.00036438,5]
[321949255,1712647850977,-1529.84,0.00036438,5]
[321949258,1712647850991,-502.37,0.00036438,5]
[321949260,1712647851005,-500.0,0.00036438,5]
[321949262,1712647851020,-762.12,0.00036438,5]
[321949265,1712647851036,-1902.17,0.00036438,5]
[321949268,1712647851053,-776.05,0.00036438,5]
[321949270,1712647851065,-500.0,0.00036438,5]
[321949272,1712647851076,-1603.08,0.00036438,5]
[321949274,1712647851089,-999.66,0.00036438,5]
[321949277,1712647851104,-1713.43,0.00036438,5]
[321949279,1712647851118,-2920.22,0.00036438,5]
[321949281,1712647851131,-500.0,0.00036438,5]
[321949283,1712647851143,-500.0,0.00036438,5]
[321949286,1712647851156,-1409.01,0.00036438,5]
[321949288,1712647851169,-2487.52,0.00036438,5]
[321949290,1712647851183,-500.0,0.00036438,5]
[321949292,1712647851196,-2391.85,0.00036438,5]
[321949295,1712647851209,-500.0,0.00036438,5]
[321949297,1712647851223,-1446.98,0.00036438,5]
[321949300,1712647851239,-608.04,0.00036438,5]
[321949302,1712647851250,-606.26,0.00036438,5]
[321949304,1712647851262,-17867.71,0.00036438,5]
[321949307,1712647851273,-500.0,0.00036438,5]
[321949309,1712647851286,-582.51,0.00036438,5]
[321949311,1712647851298,-1209.87,0.00036438,5]
[321949313,1712647851310,-625.32849749,0.00036438,5]
[321949316,1712647851324,-1182.96,0.00036438,5]
[321949318,1712647851336,-3423.85,0.00036438,5]
[321949320,1712647851348,-500.0,0.00036438,5]
[321949323,1712647851361,-13819.27,0.00036438,5]
[321949325,1712647851373,-500.0,0.00036438,5]
[321949327,1712647851385,-569.23,0.00036438,5]
[321949329,1712647851397,-5343.66,0.00036438,5]
[321949331,1712647851409,-500.0,0.00036438,5]
[321949334,1712647851421,-500.0,0.00036438,5]
[321949336,1712647851434,-500.0,0.00036438,5]
[321949338,1712647851446,-752.41,0.00036438,5]
[321949340,1712647851458,-1700.2,0.00036438,5]
[321949343,1712647851470,-502.23,0.00036438,5]
[321949345,1712647851483,-500.0,0.00036438,5]
[321949347,1712647851495,-2026.45,0.00036438,5]
[321949349,1712647851506,-500.0,0.00036438,5]
[321949351,1712647851516,-500.0,0.00036438,5]
[321949353,1712647851526,-560.87,0.00036438,5]
[321949355,1712647851535,-1263.05,0.00036438,5]
[321949357,1712647851545,-842.22,0.00036438,5]
[321949359,1712647851555,-500.0,0.00036438,5]
[321949361,1712647851564,-216.012721,0.00036441,2]
[321949364,1712647851574,-500.0,0.000365,2]
[321949366,1712647851584,-12009.1405,0.00036566,30]
[321949367,1712647851597,-403.36778013,0.00036661,2]
[321949369,1712647851607,-552.88419134,0.00036712,5]
[321949371,1712647851617,-500.0,0.00036712,5]
[321949374,1712647851626,-500.0,0.00036712,5]
[321949375,1712647851636,-500.0,0.00036712,5]
[321949378,1712647851647,-797.16,0.00036712,5]
[321949380,1712647851657,-500.0,0.00036712,5]
[321949382,1712647851667,-500.0,0.00036712,5]
[321949384,1712647851676,-500.0,0.00036712,5]
[321949386,1712647851686,-500.0,0.00036712,5]
[321949388,1712647851697,-835.92,0.00036712,2]
[321949390,1712647851706,-500.0,0.00036712,5]
[321949392,1712647851716,-525.74,0.00036712,5]
[321949393,1712647851726,-684.42,0.00036712,5]
[321949395,1712647851737,-500.0,0.00036712,5]
[321949398,1712647851747,-500.0,0.00036712,5]
[321949419,1712647851939,-500.0,0.00036712,5]
[321949421,1712647851959,-618.22,0.00036712,5]
[321949424,1712647851975,-547.7,0.00036712,5]
[321949426,1712647851984,-500.0,0.00036712,5]
[321949428,1712647851994,-1403.92,0.00036712,5]
[321949430,1712647852004,-500.0,0.00036712,5]
[321949432,1712647852014,-500.0,0.00036712,5]
[321949434,1712647852023,-647.24,0.00036712,5]
[321949436,1712647852033,-500.0,0.00036712,5]
[321949438,1712647852044,-500.0,0.00036712,5]
[321949440,1712647852053,-500.0,0.00036712,5]
[321949442,1712647852063,-500.0,0.00036712,5]
[321949444,1712647852073,-500.0,0.00036712,5]
[321949446,1712647852083,-799.03,0.00036712,5]
[321949447,1712647852093,-520.27,0.00036712,5]
[321949450,1712647852103,-500.0,0.00036712,5]
[321949451,1712647852113,-670.95,0.00036712,5]
[321949453,1712647852122,-1078.43,0.00036712,5]
[321949455,1712647852132,-500.0,0.00036712,5]
[321949458,1712647852143,-2328.95,0.00036712,5]
[321949459,1712647852154,-500.0,0.00036712,5]
[321949461,1712647852163,-948.4,0.00036712,5]
[321949464,1712647852173,-500.0,0.00036712,5]
[321949465,1712647852183,-785.42,0.00036712,5]
[321949467,1712647852192,-500.0,0.00036712,5]
[321949469,1712647852203,-500.0,0.00036712,5]
[321949472,1712647852214,-500.0,0.00036712,5]
[321949473,1712647852225,-849.98,0.00036712,5]
[321949475,1712647852236,-500.0,0.00036712,5]
[321949478,1712647852246,-1559.31,0.00036712,5]
[321949480,1712647852255,-500.0,0.00036712,5]
[321949482,1712647852264,-500.0,0.00036712,5]
[321949483,1712647852273,-501.97,0.00036712,5]
[321949486,1712647852284,-500.0,0.00036712,5]
[321949488,1712647852295,-500.0,0.00036712,5]
[321949490,1712647852305,-500.0,0.00036712,5]
[321949491,1712647852314,-500.0,0.00036712,5]
[321949494,1712647852325,-3071.26,0.00036712,5]
[321949496,1712647852334,-5313.74,0.00036712,5]
[321949497,1712647852344,-528.39,0.00036712,5]
[321949500,1712647852355,-1291.8,0.00036712,5]
[321949502,1712647852365,-6191.61,0.00036712,5]
[321949504,1712647852375,-1121.17,0.00036712,5]
[321949505,1712647852386,-2705.2,0.00036712,5]
[321949508,1712647852396,-359.15916026,0.00036712,5]
[321949510,1712647852406,-1220.29,0.00036712,5]
[321949512,1712647852417,-500.0,0.00036712,5]
[321949514,1712647852427,-1529.84,0.00036712,5]
[321949516,1712647852439,-502.37,0.00036712,5]
[321949518,1712647852449,-500.0,0.00036712,5]
[321949520,1712647852459,-762.12,0.00036712,5]
[321949522,1712647852469,-1902.17,0.00036712,5]
[321949524,1712647852479,-776.05,0.00036712,5]
[321949525,1712647852489,-500.0,0.00036712,5]
[321949528,1712647852500,-1603.08,0.00036712,5]
[321949530,1712647852509,-999.66,0.00036712,5]
[321949532,1712647852519,-1713.43,0.00036712,5]
[321949533,1712647852530,-2920.22,0.00036712,5]
[321949535,1712647852539,-500.0,0.00036712,5]
[321949537,1712647852550,-500.0,0.00036712,5]
[321949539,1712647852560,-1409.01,0.00036712,5]
[321949541,1712647852570,-2487.52,0.00036712,5]
[321949543,1712647852579,-500.0,0.00036712,5]
[321949545,1712647852588,-2391.85,0.00036712,5]
[321949547,1712647852598,-500.0,0.00036712,5]
[321949549,1712647852608,-1446.98,0.00036712,5]
[321949551,1712647852618,-608.04,0.00036712,5]
[321949553,1712647852628,-606.26,0.00036712,5]
[321949555,1712647852637,-17867.71,0.00036712,5]
[321949557,1712647852648,-500.0,0.00036712,5]
[321949559,1712647852658,-582.51,0.00036712,5]
[321949561,1712647852668,-1209.87,0.00036712,5]
[321949563,1712647852677,-1182.96,0.00036712,5]
[321949565,1712647852690,-3423.85,0.00036712,5]
[321949567,1712647852700,-500.0,0.00036712,5]
[321949569,1712647852709,-13819.27,0.00036712,5]
[321949571,1712647852719,-500.0,0.00036712,5]
[321949573,1712647852729,-569.23,0.00036712,5]
[321949575,1712647852738,-5343.66,0.00036712,5]
[321949577,1712647852749,-500.0,0.00036712,5]
[321949579,1712647852760,-500.0,0.00036712,5]
[321949581,1712647852770,-500.0,0.00036712,5]
[321949583,1712647852779,-752.41,0.00036712,5]
[321949585,1712647852788,-1700.2,0.00036712,5]
[321949587,1712647852798,-502.23,0.00036712,5]
[321949589,1712647852808,-500.0,0.00036712,5]
[321949591,1712647852817,-2026.45,0.00036712,5]
[321949593,1712647852826,-500.0,0.00036712,5]
[321949595,1712647852837,-500.0,0.00036712,5]
[321949597,1712647852848,-560.87,0.00036712,5]
[321949599,1712647852859,-1263.05,0.00036712,5]
[321949601,1712647852869,-842.22,0.00036712,5]
[321949603,1712647852878,-166.666666,0.00036723,2]
[321949605,1712647852888,-603.57749575,0.00036807,7]
[321949607,1712647852897,-319.72758516,0.000369,30]
[321949609,1712647852906,-2000.0,0.000369,11]
[321949611,1712647852915,-151.0,0.000369,2]
[321949613,1712647852924,-151.0,0.000369,2]
[321949615,1712647852934,-151.0,0.000369,2]
[321949617,1712647852943,-2000.0,0.0003691,11]
[321949619,1712647852953,-2000.0,0.0003692,11]
[321949621,1712647852963,-2000.0,0.0003693,11]
[321949623,1712647852972,-397.22395761,0.00036934,8]
[321949624,1712647852982,-2000.0,0.0003694,11]
[321949626,1712647852994,-151.0,0.0003694,2]
[321949628,1712647853006,-403.36778013,0.00036947,2]
[321949631,1712647853015,-3082.420344,0.0003695,11]
[321949632,1712647853025,-500.0,0.00036986,5]
[321949634,1712647853035,-500.0,0.00036986,5]
[321949636,1712647853045,-500.0,0.00036986,5]
[321949638,1712647853055,-797.16,0.00036986,5]
[321949640,1712647853066,-500.0,0.00036986,5]
[321949643,1712647853077,-500.0,0.00036986,5]
[321949645,1712647853087,-501.50555023,0.00036986,5]
[321949647,1712647853097,-500.0,0.00036986,5]
[321949648,1712647853106,-835.92,0.00036986,2]
[321949650,1712647853116,-500.0,0.00036986,5]
[321949652,1712647853126,-525.74,0.00036986,5]
[321949654,1712647853135,-684.42,0.00036986,5]
[321949656,1712647853147,-500.0,0.00036986,5]
[321949658,1712647853156,-500.0,0.00036986,5]
[321949660,1712647853165,-618.22,0.00036986,5]
[321949662,1712647853176,-547.7,0.00036986,5]
[321949664,1712647853186,-500.0,0.00036986,5]
[321949666,1712647853196,-1403.92,0.00036986,5]
[321949668,1712647853206,-500.0,0.00036986,5]
[321949670,1712647853215,-500.0,0.00036986,5]
[321949672,1712647853225,-647.24,0.00036986,5]
[321949674,1712647853235,-500.0,0.00036986,5]
[321949677,1712647853244,-500.0,0.00036986,5]
[321949678,1712647853253,-500.0,0.00036986,5]
[321949681,1712647853263,-500.0,0.00036986,5]
[321949683,1712647853272,-500.0,0.00036986,5]
[321949685,1712647853281,-799.03,0.00036986,5]
[321949687,1712647853291,-520.27,0.00036986,5]
[321949689,1712647853300,-500.0,0.00036986,5]
[321949690,1712647853309,-670.95,0.00036986,5]
[321949692,1712647853319,-1078.43,0.00036986,5]
[321949694,1712647853328,-295.36016532,0.00036986,5]
[321949696,1712647853337,-2328.95,0.00036986,5]
[321949698,1712647853346,-500.0,0.00036986,5]
[321949700,1712647853357,-948.4,0.00036986,5]
[321949702,1712647853366,-500.0,0.00036986,5]
[321949704,1712647853375,-785.42,0.00036986,5]
[321949706,1712647853385,-500.0,0.00036986,5]
[321949708,1712647853394,-500.0,0.00036986,5]
[321949710,1712647853403,-500.0,0.00036986,5]
[321949712,1712647853412,-849.98,0.00036986,5]
[321949714,1712647853421,-500.0,0.00036986,5]
[321949716,1712647853430,-1559.31,0.00036986,5]
[321949718,1712647853440,-500.0,0.00036986,5]
[321949720,1712647853448,-500.0,0.00036986,5]
[321949722,1712647853457,-501.97,0.00036986,5]
[321949724,1712647853466,-500.0,0.00036986,5]
[321949726,1712647853475,-500.0,0.00036986,5]
[321949728,1712647853484,-205.599117,0.00036986,2]
[321949730,1712647853493,-205.599117,0.00036986,2]
[321949732,1712647853503,-500.0,0.00036986,5]
[321949735,1712647853516,-500.0,0.00036986,5]
[321949737,1712647853525,-3071.26,0.00036986,5]
[321949739,1712647853534,-5313.74,0.00036986,5]
[321949741,1712647853543,-528.39,0.00036986,5]
[321949742,1712647853552,-1291.8,0.00036986,5]
[321949744,1712647853561,-6191.61,0.00036986,5]
[321949746,1712647853570,-1121.17,0.00036986,5]
[321949748,1712647853580,-2705.2,0.00036986,5]
[321949751,1712647853590,-1220.29,0.00036986,5]
[321949753,1712647853599,-1529.84,0.00036986,5]
[321949755,1712647853608,-502.37,0.00036986,5]
[321949757,1712647853617,-500.0,0.00036986,5]
[321949759,1712647853626,-500.0,0.00036986,5]
[321949761,1712647853635,-762.12,0.00036986,5]
[321949763,1712647853644,-1902.17,0.00036986,5]
[321949765,1712647853654,-776.05,0.00036986,5]
[321949767,1712647853663,-500.0,0.00036986,5]
[321949769,1712647853673,-1603.08,0.00036986,5]
[321949771,1712647853682,-999.66,0.00036986,5]
[321949773,1712647853692,-1713.43,0.00036986,5]
[321949775,1712647853701,-2920.22,0.00036986,5]
[321949777,1712647853710,-500.0,0.00036986,5]
[321949779,1712647853720,-298.86258847,0.00036986,5]
[321949781,1712647853730,-1409.01,0.00036986,5]
[321949783,1712647853740,-2487.52,0.00036986,5]
[321949785,1712647853750,-500.0,0.00036986,5]
[321949787,1712647853758,-2391.85,0.00036986,5]
[321949789,1712647853767,-500.0,0.00036986,5]
[321949791,1712647853776,-1446.98,0.00036986,5]
[321949793,1712647853785,-608.04,0.00036986,5]
[321949795,1712647853794,-606.26,0.00036986,5]
[321949797,1712647853803,-17867.71,0.00036986,5]
[321949799,1712647853812,-500.0,0.00036986,5]
[321949801,1712647853821,-582.51,0.00036986,5]
[321949803,1712647853832,-1209.87,0.00036986,5]
[321949805,1712647853841,-1182.96,0.00036986,5]
[321949807,1712647853851,-3423.85,0.00036986,5]
[321949809,1712647853861,-500.0,0.00036986,5]
[321949811,1712647853870,-13819.27,0.00036986,5]
[321949813,1712647853879,-500.0,0.00036986,5]
[321949815,1712647853888,-569.23,0.00036986,5]
[321949817,1712647853897,-5343.66,0.00036986,5]
[321949819,1712647853906,-500.0,0.00036986,5]
[321949821,1712647853916,-500.0,0.00036986,5]
[321949823,1712647853924,-500.0,0.00036986,5]
[321949825,1712647853935,-752.41,0.00036986,5]
[321949827,1712647853943,-1700.2,0.00036986,5]
[321949829,1712647853954,-502.23,0.00036986,5]
[321949831,1712647853962,-500.0,0.00036986,5]
[321949833,1712647853971,-2026.45,0.00036986,5]
[321949835,1712647853981,-407.84461231,0.00036986,5]
[321949837,1712647853990,-500.0,0.00036986,5]
[321949839,1712647853999,-560.87,0.00036986,5]
[321949841,1712647854008,-1263.05,0.00036986,5]
[321949843,1712647854017,-842.22,0.00036986,5]
[321949845,1712647854026,-1054.743135,0.00036986,120]
[321949847,1712647854035,-1613.0,0.0003699,2]
[321949849,1712647854044,-160.0,0.00037,3]
[321949851,1712647854053,-154.98450155,0.00037,4]
[321949853,1712647854062,-500.0,0.00037,2]
[321949855,1712647854071,-585.0,0.000371,2]
[321949857,1712647854080,-403.36778013,0.00037233,2]
[321949859,1712647854090,-202.7418102,0.00037253,2]
[321949861,1712647854099,-202.7418102,0.00037253,2]
[321949863,1712647854108,-202.7418102,0.00037253,2]
[321949865,1712647854119,-202.7418102,0.00037253,2]
[321949867,1712647854128,-202.7418102,0.00037253,2]
[321949869,1712647854138,-202.7418102,0.00037253,2]
[321949871,1712647854151,-202.7418102,0.00037253,2]
[321949873,1712647854160,-202.7418102,0.00037253,2]
[321949875,1712647854170,-202.7418102,0.00037253,2]
[321949877,1712647854179,-202.7418102,0.00037253,2]
[321949879,1712647854190,-404.1049686,0.00037253,2]
[321949881,1712647854199,-500.0,0.0003726,5]
[321949883,1712647854207,-500.0,0.0003726,5]
[321949885,1712647854217,-500.0,0.0003726,5]
[321949887,1712647854227,-797.16,0.0003726,5]
[321949889,1712647854237,-500.0,0.0003726,5]
[321949891,1712647854246,-214.755191,0.0003726,2]
[321949893,1712647854255,-500.0,0.0003726,5]
[321949895,1712647854264,-835.92,0.0003726,2]
[321949897,1712647854273,-494.36392824,0.0003726,5]
[321949899,1712647854283,-525.74,0.0003726,5]
[321949901,1712647854292,-684.42,0.0003726,5]
[321949903,1712647854301,-500.0,0.0003726,5]
[321949905,1712647854311,-500.0,0.0003726,5]
[321949907,1712647854319,-547.7,0.0003726,5]
[321949908,1712647854334,-618.22,0.0003726,5]
[321949909,1712647854383,-500.0,0.0003726,5]
[321949910,1712647854392,-1403.92,0.0003726,5]
[321949911,1712647854401,-500.0,0.0003726,5]
[321949912,1712647854410,-500.0,0.0003726,5]
[321949913,1712647854419,-647.24,0.0003726,5]
[321949914,1712647854428,-500.0,0.0003726,5]
[321949915,1712647854438,-500.0,0.0003726,5]
[321949916,1712647854447,-500.0,0.0003726,5]
[321949918,1712647854456,-500.0,0.0003726,5]
[321949920,1712647854465,-500.0,0.0003726,5]
[321949922,1712647854474,-799.03,0.0003726,5]
[321949924,1712647854484,-520.27,0.0003726,5]
[321949926,1712647854494,-500.0,0.0003726,5]
[321949928,1712647854503,-670.95,0.0003726,5]
[321949930,1712647854513,-1078.43,0.0003726,5]
[321949932,1712647854522,-2328.95,0.0003726,5]
[321949934,1712647854532,-500.0,0.0003726,5]
[321949936,1712647854542,-948.4,0.0003726,5]
[321949938,1712647854551,-500.0,0.0003726,5]
[321949940,1712647854560,-785.42,0.0003726,5]
[321949942,1712647854569,-500.0,0.0003726,5]
[321949944,1712647854579,-500.0,0.0003726,5]
[321949946,1712647854588,-475.12778117,0.0003726,5]
[321949948,1712647854597,-849.98,0.0003726,5]
[321949950,1712647854606,-248.21569034,0.0003726,5]
[321949952,1712647854615,-1559.31,0.0003726,5]
[321949954,1712647854624,-500.0,0.0003726,5]
[321949956,1712647854633,-516.29748212,0.0003726,5]
[321949958,1712647854642,-501.97,0.0003726,5]
[321949960,1712647854651,-500.0,0.0003726,5]
[321949962,1712647854660,-546.66994449,0.0003726,5]
[321949964,1712647854669,-500.0,0.0003726,5]
[321949966,1712647854678,-500.0,0.0003726,5]
[321949968,1712647854687,-3071.26,0.0003726,5]
[321949970,1712647854696,-5313.74,0.0003726,5]
[321949972,1712647854706,-528.39,0.0003726,5]
[321949974,1712647854715,-1291.8,0.0003726,5]
[321949976,1712647854724,-6191.61,0.0003726,5]
[321949978,1712647854733,-1121.17,0.0003726,5]
[321949980,1712647854742,-2705.2,0.0003726,5]
[321949982,1712647854751,-1220.29,0.0003726,5]
[321949984,1712647854760,-1529.84,0.0003726,5]
[321949986,1712647854768,-502.37,0.0003726,5]
[321949988,1712647854777,-500.0,0.0003726,5]
[321949990,1712647854786,-257.66574803,0.0003726,5]
[321949992,1712647854795,-762.12,0.0003726,5]
[321949994,1712647854804,-1902.17,0.0003726,5]
[321949996,1712647854813,-776.05,0.0003726,5]
[321949998,1712647854822,-500.0,0.0003726,5]
[321950000,1712647854831,-1603.08,0.0003726,5]
[321950002,1712647854840,-999.66,0.0003726,5]
[321950004,1712647854850,-1713.43,0.0003726,5]
[321950006,1712647854859,-2920.22,0.0003726,5]
[321950008,1712647854867,-500.0,0.0003726,5]
[321950010,1712647854876,-1409.01,0.0003726,5]
[321950011,1712647854885,-2487.52,0.0003726,5]
[321950013,1712647854894,-500.0,0.0003726,5]
[321950015,1712647854903,-2391.85,0.0003726,5]
[321950017,1712647854913,-500.0,0.0003726,5]
[321950019,1712647854922,-1446.98,0.0003726,5]
[321950021,1712647854931,-608.04,0.0003726,5]
[321950023,1712647854942,-606.26,0.0003726,5]
[321950025,1712647854951,-17867.71,0.0003726,5]
[321950027,1712647854959,-500.0,0.0003726,5]
[321950029,1712647854968,-582.51,0.0003726,5]
[321950031,1712647854978,-151.0,0.0003726,2]
[321950034,1712647854987,-1209.87,0.0003726,5]
[321950036,1712647854996,-1182.96,0.0003726,5]
[321950038,1712647855006,-3423.85,0.0003726,5]
[321950040,1712647855015,-500.0,0.0003726,5]
[321950042,1712647855024,-13819.27,0.0003726,5]
[321950044,1712647855033,-500.0,0.0003726,5]
[321950046,1712647855043,-569.23,0.0003726,5]
[321950047,1712647855052,-5343.66,0.0003726,5]
[321950049,1712647855062,-500.0,0.0003726,5]
[321950052,1712647855071,-500.0,0.0003726,5]
[321950065,1712647855191,-500.0,0.0003726,5]
[321950067,1712647855201,-752.41,0.0003726,5]
[321950069,1712647855211,-1700.2,0.0003726,5]
[321950071,1712647855220,-502.23,0.0003726,5]
[321950073,1712647855230,-500.0,0.0003726,5]
[321950075,1712647855240,-2026.45,0.0003726,5]
[321950077,1712647855249,-151.0,0.0003726,2]
[321950079,1712647855259,-500.0,0.0003726,5]
[321950081,1712647855269,-560.87,0.0003726,5]
[321950083,1712647855278,-1263.05,0.0003726,5]
[321950085,1712647855287,-842.22,0.0003726,5]
[321950087,1712647855296,-202.7418102,0.00037371,2]
[321950089,1712647855306,-202.7418102,0.00037371,2]
[321950091,1712647855315,-160.0,0.00037395,4]